fUSD/lending_fUSD_20250213
["ID","MTS","AMOUNT","RATE_DAILY","PERIOD"]
[352949579,1739458149130,-250.0,0.00012997,2]
[352949580,1739458149153,-1103.37,0.00013005,2]
[352949581,1739458149175,-7541.53446103,0.00013055,2]
[352949582,1739458149197,-2751.0,0.00013055,2]
[352949583,1739458149219,-150.0,0.00013205,2]
[352949584,1739458149245,-2000.0,0.00013205,2]
[352949585,1739458149268,-200.0,0.000133,2]
[352949586,1739458149290,-150.0,0.00013315,2]
[352949587,1739458149312,-1460.15,0.00013341,2]
[352949588,1739458149334,-169.48,0.00013357,2]
[352949589,1739458149358,-150.99,0.00013357,2]
[352949590,1739458149380,-216.74639371,0.0001337,2]
[352949591,1739458151084,-180.25360629,0.0001337,2]
[352949592,1739458151105,-150.0,0.00013482,2]
[352949593,1739458151128,-150.0,0.00013482,2]
[352949594,1739458151149,-188.33,0.00013589,2]
[352949595,1739458151170,-500.0,0.00013808,2]
[352949596,1739458151190,-431.83725236,0.0001389,2]
[352949597,1739458151212,-1702.72206135,0.000139,2]
[352949598,1739458162305,-6001.31759527,0.000139,2]
[352949599,1739458162329,-7704.03965658,0.00013922,2]
[352949600,1739458162352,-328.41527795,0.00013933,2]
[352949601,1739458162375,-7704.03965658,0.00013944,2]
[352949602,1739458162400,-5800.0,0.00013958,2]
[352949603,1739458162421,-5800.0,0.00013966,2]
[352949604,1739458162443,-7704.03965658,0.00013967,2]
[352949605,1739458162465,-5800.0,0.00013974,2]
[352949606,1739458162487,-5800.0,0.00013983,2]
[352949607,1739458162512,-7704.03965658,0.00013989,2]
[352949608,1739458162535,-5800.0,0.00013991,2]
[352949609,1739458162556,-434.50495414,0.00013998,2]
[352949610,1739458162580,-3542.50786632,0.00013999,2]
[352949611,1739458177390,730.07,0.00013116,2]
[352949617,1739458232725,-362.34035964,0.000139,2]
[352949618,1739458232735,-362.34035958,0.00013922,2]
[352949621,1739458232744,-362.34035958,0.00013944,2]
[352949622,1739458232754,-362.34035958,0.00013967,2]
[352949625,1739458232764,-362.34035958,0.00013989,2]
[352949627,1739458232774,-2900.59,0.00013999,2]
[352949628,1739458232784,-1466.66,0.00013999,2]
[352949630,1739458232794,-1219.76,0.00013999,2]
[352949633,1739458232804,-4554.65,0.00013999,2]
[352949635,1739458232814,-1339.0502235,0.00013999,2]
[352949637,1739458232827,-526.2697765,0.00013999,2]
[352949639,1739458232837,-183.08261641,0.00013999,2]
[352949641,1739458232848,-316.91738359,0.00013999,2]
[352949643,1739458232858,-639.33261641,0.00013999,2]
[352949662,1739458238006,-832.74066278,0.00013999,2]
[352949665,1739458238019,-2284.12672081,0.00013999,2]
[352949666,1739458238029,-2591.291679,0.00013999,2]
[352949667,1739458238038,-2804.94,0.00013999,2]
[352949668,1739458238048,-159.37511,0.00013999,2]
[352949670,1739458238058,-2365.34,0.00013999,2]
[352949671,1739458238067,-155.513928,0.00013999,2]
[352949673,1739458238080,-2022.69,0.00013999,2]
[352949674,1739458238089,-3650.99,0.00013999,2]
[352949675,1739458238099,-1561.75,0.00013999,2]
[352949676,1739458238108,-808.27,0.00013999,2]
[352949677,1739458238117,-1201.098903,0.00013999,2]
[352949678,1739458238126,-3214.41,0.00013999,2]
[352949679,1739458238135,-1453.09,0.00013999,2]
[352949680,1739458238145,-1268.89,0.00013999,2]
[352949681,1739458238154,-2704.44,0.00013999,2]
[352949682,1739458238163,-1078.53,0.00013999,2]
[352949683,1739458238173,-4254.21,0.00013999,2]
[352949684,1739458238183,-2505.56,0.00013999,2]
[352949685,1739458238193,-500.0,0.00013999,2]
[352949686,1739458238203,-2787.12,0.00013999,2]
[352949687,1739458238213,-1997.03,0.00013999,2]
[352949688,1739458238223,-3732.74,0.00013999,2]
[352949689,1739458238232,-2182.85,0.00013999,2]
[352949690,1739458238242,-3581.2,0.00013999,2]
[352949691,1739458238251,-152.011893,0.00013999,2]
[352949692,1739458238260,-3044.05,0.00013999,2]
[352949693,1739458238269,-3584.02,0.00013999,2]
[352949694,1739458238278,-3468.6,0.00013999,2]
[352949695,1739458238287,-500.0,0.00013999,2]
[352949696,1739458238297,-3571.61,0.00013999,2]
[352949697,1739458238306,-3419.78,0.00013999,2]
[352949698,1739458238316,-152.634274,0.00013999,2]
[352949699,1739458238328,-2528.35,0.00013999,2]
[352949700,1739458238337,-500.0,0.00013999,2]
[352949701,1739458238347,-1926.9,0.00013999,2]
[352949702,1739458238356,-2858.48,0.00013999,2]
[352949703,1739458238366,-1770.73135403,0.00013999,2]
[352949722,1739458241297,-1113.81235035,0.00013999,2]
[352949723,1739458241436,-333.82629562,0.00013999,2]
[352949724,1739458241445,-808.58364348,0.00013999,2]
[352949725,1739458242267,-605.72030286,0.00013999,2]
[352949726,1739458242278,-420.76724675,0.00013999,2]
[352949749,1739458243065,-659.9999998,0.00013999,2]
[352949750,1739458243079,-832.60880711,0.00013999,2]
[352949751,1739458243089,-3472.11,0.00013999,2]
[352949752,1739458243098,-4555.94,0.00013999,2]
[352949753,1739458243108,-3715.07,0.00013999,2]
[352949754,1739458243118,-10441.72,0.00013999,2]
[352949755,1739458243127,-500.0,0.00013999,2]
[352949756,1739458243137,-4969.47,0.00013999,2]
[352949757,1739458243147,-4071.49,0.00013999,2]
[352949758,1739458243156,-3068.04,0.00013999,2]
[352949759,1739458243166,-500.0,0.00013999,2]
[352949760,1739458243175,-7777.74,0.00013999,2]
[352949761,1739458243186,-2738.67,0.00013999,2]
[352949762,1739458243196,-500.0,0.00013999,2]
[352949763,1739458243205,-2861.21,0.00013999,2]
[352949764,1739458243215,-500.0,0.00013999,2]
[352949765,1739458243225,-2144.63,0.00013999,2]
[352949766,1739458243234,-500.0,0.00013999,2]
[352949767,1739458243245,-500.0,0.00013999,2]
[352949768,1739458243254,-3838.03,0.00013999,2]
[352949769,1739458243264,-5453.93,0.00013999,2]
[352949770,1739458243274,-500.0,0.00013999,2]
[352949771,1739458243284,-1448.08,0.00013999,2]
[352949772,1739458243294,-2326.24,0.00013999,2]
[352949773,1739458243305,-794.42,0.00013999,2]
[352949774,1739458243315,-4497.87,0.00013999,2]
[352949775,1739458243326,-500.0,0.00013999,2]
[352949776,1739458243335,-500.0,0.00013999,2]
[352949777,1739458243346,-1100.0,0.00014,4]
[352949778,1739458243356,-117252.73119287,0.00014,2]
[352949779,1739458243369,-274.29388747,0.00014,2]
[352949780,1739458243380,-329.0207687,0.00014,2]
[352949781,1739458243391,-426.73155788,0.00014,2]
[352949782,1739458243404,-534.29999024,0.00014,2]
[352949783,1739458243416,-3185.0,0.00014,2]
[352949784,1739458243427,-8955.54765502,0.00014,2]
[352949785,1739458243437,-25304.57784583,0.00014,14]
[352949786,1739458243448,-814.161348,0.00014,14]
[352949789,1739458243541,-2736.39119504,0.00014,14]
[352949790,1739458243553,-959.09,0.00014,14]
[352949791,1739458243565,-13930.22934053,0.00014,14]
[352949792,1739458243578,-439.73,0.00014,2]
[352949793,1739458243588,-167.99,0.00014,2]
[352949794,1739458243597,-5800.0,0.00014,2]
[352949795,1739458243607,-7704.03965658,0.00014011,2]
[352949796,1739458243617,-362.34035958,0.00014011,2]
[352949797,1739458243627,-638.38,0.00014032,2]
[352949798,1739458243637,-610.3,0.00014032,2]
[352949799,1739458243647,-1088.5,0.00014032,2]
[352949800,1739458243657,-500.0,0.00014032,2]
[352949801,1739458243667,-500.0,0.00014032,2]
[352949802,1739458243677,-500.0,0.00014032,2]
[352949803,1739458243686,-500.0,0.00014032,2]
[352949804,1739458243696,-500.0,0.00014032,2]
[352949805,1739458243706,-500.0,0.00014032,2]
[352949806,1739458243716,-825.02,0.00014032,2]
[352949807,1739458243725,-500.0,0.00014032,2]
[352949808,1739458243735,-824.99,0.00014032,2]
[352949809,1739458243745,-513.07166307,0.00014032,2]
[352949810,1739458243754,-500.0,0.00014032,2]
[352949811,1739458243764,-500.0,0.00014032,2]
[352949812,1739458243774,-720.89,0.00014032,2]
[352949813,1739458243784,-500.0,0.00014032,2]
[352949814,1739458243793,-940.68,0.00014032,2]
[352949815,1739458243803,-383.57266039,0.00014032,2]
[352949816,1739458243813,-690.19,0.00014032,2]
[352949817,1739458243824,-500.0,0.00014032,2]
[352949818,1739458243834,-500.0,0.00014032,2]
[352949819,1739458243843,-500.0,0.00014032,2]
[352949820,1739458243853,-500.0,0.00014032,2]
[352949821,1739458243862,-500.0,0.00014032,2]
[352949822,1739458243871,-500.0,0.00014032,2]
[352949823,1739458243881,-500.0,0.00014032,2]
[352949824,1739458243892,-500.0,0.00014032,2]
[352949825,1739458243902,-969.14,0.00014032,2]
[352949826,1739458243911,-500.0,0.00014032,2]
[352949827,1739458243921,-750.4,0.00014032,2]
[352949828,1739458243931,-523.44,0.00014032,2]
[352949829,1739458243940,-550.12102332,0.00014032,2]
[352949830,1739458243950,-500.0,0.00014032,2]
[352949831,1739458243960,-500.0,0.00014032,2]
[352949832,1739458243972,-500.0,0.00014032,2]
[352949833,1739458243981,-500.0,0.00014032,2]
[352949834,1739458243991,-502.238208,0.00014032,2]
[352949835,1739458244001,-500.0,0.00014032,2]
[352949836,1739458244010,-503.19489683,0.00014032,2]
[352949837,1739458244020,-500.0,0.00014032,2]
[352949838,1739458244030,-500.0,0.00014032,2]
[352949839,1739458244039,-500.0,0.00014032,2]
[352949840,1739458244049,-500.0,0.00014032,2]
[352949841,1739458244059,-500.0,0.00014032,2]
[352949842,1739458244068,-931.62,0.00014032,2]
[352949843,1739458244080,-500.0,0.00014032,2]
[352949844,1739458244090,-500.0,0.00014032,2]
[352949845,1739458244100,-500.0,0.00014032,2]
[352949846,1739458244110,-500.0,0.00014032,2]
[352949847,1739458244120,-699.55,0.00014032,2]
[352949848,1739458244129,-500.0,0.00014032,2]
[352949849,1739458244139,-500.0,0.00014032,2]
[352949850,1739458244149,-500.0,0.00014032,2]
[352949851,1739458244158,-500.0,0.00014032,2]
[352949852,1739458244168,-500.0,0.00014032,2]
[352949853,1739458244178,-500.0,0.00014032,2]
[352949854,1739458244187,-500.0,0.00014032,2]
[352949855,1739458244197,-500.0,0.00014032,2]
[352949856,1739458244207,-500.0,0.00014032,2]
[352949857,1739458244217,-204.01807778,0.00014032,2]
[352949858,1739458244226,-500.0,0.00014032,2]
[352949859,1739458244236,-500.0,0.00014032,2]
[352949860,1739458244246,-759.45,0.00014032,2]
[352949861,1739458244255,-500.0,0.00014032,2]
[352949862,1739458244265,-549.64,0.00014032,2]
[352949863,1739458244274,-500.0,0.00014032,2]
[352949864,1739458244283,-500.0,0.00014032,2]
[352949865,1739458244292,-500.0,0.00014032,2]
[352949866,1739458244302,-1002.73,0.00014032,2]
[352949867,1739458244311,-500.0,0.00014032,2]
[352949868,1739458244320,-501.9530557,0.00014032,2]
[352949869,1739458244331,-500.0,0.00014032,2]
[352949870,1739458244341,-500.0,0.00014032,2]
[352949871,1739458244350,-500.0,0.00014032,2]
[352949872,1739458244359,-500.0,0.00014032,2]
[352949873,1739458244368,-500.0,0.00014032,2]
[352949874,1739458244378,-500.0,0.00014032,2]
[352949875,1739458244387,-500.0,0.00014032,2]
[352949876,1739458244396,-500.0,0.00014032,2]
[352949877,1739458244405,-500.0,0.00014032,2]
[352949878,1739458244415,-500.0,0.00014032,2]
[352949879,1739458244424,-500.0,0.00014032,2]
[352949880,1739458244433,-500.0,0.00014032,2]
[352949881,1739458244442,-500.0,0.00014032,2]
[352949882,1739458244452,-500.0,0.00014032,2]
[352949883,1739458244461,-500.0,0.00014032,2]
[352949884,1739458244471,-500.0,0.00014032,2]
[352949885,1739458244480,-543.11789898,0.00014032,2]
[352949886,1739458244489,-500.0,0.00014032,2]
[352949887,1739458244499,-313.37449628,0.00014032,2]
[352949888,1739458244508,-671.71,0.00014032,2]
[352949889,1739458244522,-500.0,0.00014032,2]
[352949890,1739458244532,-500.0,0.00014032,2]
[352949891,1739458244542,-500.0,0.00014032,2]
[352949892,1739458244551,-500.0,0.00014032,2]
[352949893,1739458244561,-613.91,0.00014032,2]
[352949894,1739458244571,-1061.75,0.00014032,2]
[352949895,1739458244582,-516.54,0.00014032,2]
[352949896,1739458244593,-500.0,0.00014032,2]
[352949897,1739458244603,-500.0,0.00014032,2]
[352949898,1739458244613,-500.0,0.00014032,2]
[352949899,1739458244623,-500.0,0.00014032,2]
[352949900,1739458244633,-500.0,0.00014032,2]
[352949901,1739458244642,-500.0,0.00014032,2]
[352949902,1739458244652,-500.0,0.00014032,2]
[352949903,1739458244662,-1013.81,0.00014032,2]
[352949904,1739458244671,-500.0,0.00014032,2]
[352949905,1739458244681,-500.0,0.00014032,2]
[352949906,1739458244691,-500.0,0.00014033,2]
[352949907,1739458244700,-1811.11,0.00014033,2]
[352949908,1739458244710,-507.07363615,0.00014033,2]
[352949909,1739458244719,-1438.44,0.00014033,2]
[352949910,1739458244729,-500.0,0.00014033,2]
[352949911,1739458244739,-500.0,0.00014033,2]
[352949912,1739458244749,-529.29,0.00014033,2]
[352949913,1739458244758,-701.01,0.00014033,2]
[352949914,1739458244768,-500.0,0.00014033,2]
[352949915,1739458244778,-1382.04,0.00014033,2]
[352949916,1739458244787,-536.99,0.00014033,2]
[352949917,1739458244797,-500.0,0.00014033,2]
[352949918,1739458244807,-500.0,0.00014033,2]
[352949919,1739458244816,-616.9,0.00014033,2]
[352949920,1739458244827,-500.0,0.00014033,2]
[352949921,1739458244837,-1944.55,0.00014033,2]
[352949922,1739458244848,-1475.55,0.00014033,2]
[352949923,1739458244858,-972.14,0.00014033,2]
[352949924,1739458244867,-500.0,0.00014033,2]
[352949925,1739458244877,-1840.67,0.00014033,2]
[352949926,1739458244887,-1863.87,0.00014033,2]
[352949927,1739458244899,-500.0,0.00014033,2]
[352949928,1739458244910,-500.0,0.00014033,2]
[352949929,1739458244919,-569.0,0.00014033,2]
[352949930,1739458244929,-976.52,0.00014033,2]
[352949931,1739458244939,-500.0,0.00014033,2]
[352949932,1739458244950,-829.55,0.00014033,2]
[352949933,1739458244960,-819.53,0.00014033,2]
[352949934,1739458244969,-1081.8,0.00014033,2]
[352949935,1739458244980,-500.0,0.00014033,2]
[352949936,1739458244989,-503.80722825,0.00014033,2]
[352949937,1739458244999,-807.33,0.00014033,2]
[352949938,1739458245009,-366.75275334,0.00014033,2]
[352949939,1739458245019,-500.0,0.00014033,2]
[352949940,1739458245029,-500.0,0.00014033,2]
[352949941,1739458245038,-525.63107423,0.00014033,2]
[352949942,1739458245048,-536.59893837,0.00014033,2]
[352949943,1739458245062,-635.12,0.00014033,2]
[352949944,1739458245071,-1401.34,0.00014033,2]
[352949945,1739458245083,-503.6453496,0.00014033,2]
[352949946,1739458245093,-949.72,0.00014033,2]
[352949947,1739458245103,-500.0,0.00014033,2]
[352949948,1739458245112,-500.0,0.00014033,2]
[352949949,1739458245123,-500.0,0.00014033,2]
[352949950,1739458245133,-500.0,0.00014033,2]
[352949951,1739458245143,-500.0,0.00014033,2]
[352949952,1739458245153,-500.0,0.00014033,2]
[352949953,1739458245164,-525.97,0.00014033,2]
[352949954,1739458245174,-501.80686104,0.00014033,2]
[352949955,1739458245184,-975.43,0.00014033,2]
[352949956,1739458245194,-1693.57,0.00014033,2]
[352949957,1739458245204,-498.24856719,0.00014033,2]
[352949958,1739458245214,-500.80183302,0.00014033,2]
[352949959,1739458245225,-500.0,0.00014033,2]
[352949960,1739458245234,-500.0,0.00014033,2]
[352949961,1739458245244,-513.09022095,0.00014033,2]
[352949962,1739458245254,-920.13,0.00014033,2]
[352949963,1739458245264,-504.19446005,0.00014033,2]
[352949964,1739458245274,-520.86,0.00014033,2]
[352949965,1739458245284,-2062.75,0.00014033,2]
[352949966,1739458245294,-500.0,0.00014033,2]
[352949967,1739458245304,-511.3072841,0.00014033,2]
[352949968,1739458245314,-500.0,0.00014033,2]
[352949969,1739458245326,-622.47,0.00014033,2]
[352949970,1739458245336,-629.07043743,0.00014033,2]
[352949971,1739458245346,-500.0,0.00014033,2]
[352949972,1739458245356,-500.0,0.00014033,2]
[352949973,1739458245366,-500.0,0.00014033,2]
[352949974,1739458245377,-696.97,0.00014033,2]
[352949975,1739458245388,-500.0,0.00014033,2]
[352949976,1739458245398,-500.0,0.00014033,2]
[352949977,1739458245408,-1006.5,0.00014033,2]
[352949978,1739458245417,-994.47,0.00014033,2]
[352949979,1739458245427,-500.0,0.00014033,2]
[352949980,1739458245437,-770.09,0.00014033,2]
[352949981,1739458245449,-1281.95,0.00014033,2]
[352949982,1739458245460,-500.0,0.00014033,2]
[352949983,1739458245470,-1035.76,0.00014033,2]
[352949984,1739458245480,-500.0,0.00014033,2]
[352949985,1739458245698,-2832.41,0.00014033,2]
[352949986,1739458245710,-1999.46,0.00014033,2]
[352949987,1739458245720,-500.0,0.00014033,2]
[352949988,1739458245729,-501.9588337,0.00014033,2]
[352949989,1739458245739,-821.08,0.00014033,2]
[352949990,1739458245748,-500.0,0.00014033,2]
[352949991,1739458245758,-1005.78,0.00014033,2]
[352949992,1739458245768,-500.0,0.00014033,2]
[352949993,1739458245777,-500.0,0.00014033,2]
[352949994,1739458245787,-500.0,0.00014033,2]
[352949995,1739458245796,-1264.27,0.00014033,2]
[352949996,1739458245805,-1287.35,0.00014033,2]
[352949997,1739458245815,-500.0,0.00014033,2]
[352949998,1739458245826,-3207.76,0.00014033,2]
[352949999,1739458245836,-1958.15,0.00014033,2]
[352950000,1739458245846,-500.0,0.00014033,2]
[352950001,1739458245856,-815.36,0.00014033,2]
[352950002,1739458245866,-500.0,0.00014033,2]
[352950003,1739458245875,-1143.5,0.00014033,2]
[352950004,1739458245885,-502.69,0.00014033,2]
[352950005,1739458245898,-500.0,0.00014033,2]
[352950006,1739458245908,-2261.06,0.00014033,2]
[352950007,1739458245918,-204.26452152,0.00014033,2]
[352950008,1739458245929,-500.0,0.00014033,2]
[352950009,1739458245940,-572.68856589,0.00014033,2]
[352950010,1739458245950,-1942.47,0.00014033,2]
[352950011,1739458245959,-501.75110878,0.00014033,2]
[352950012,1739458245970,-3197.41,0.00014033,2]
[352950013,1739458245981,-500.0,0.00014033,2]
[352950014,1739458245990,-1665.64,0.00014033,2]
[352950015,1739458245999,-797.37,0.00014033,2]
[352950016,1739458246008,-298.67731124,0.00014033,2]
[352950017,1739458246018,-2115.88,0.00014033,2]
[352950018,1739458246027,-500.0,0.00014033,2]
[352950019,1739458246036,-500.0,0.00014033,2]
[352950020,1739458246046,-1763.39,0.00014033,2]
[352950021,1739458246056,-3000.88,0.00014033,2]
[352950022,1739458246066,-719.21,0.00014033,2]
[352950023,1739458246076,-500.0,0.00014033,2]
[352950024,1739458246085,-1494.07,0.00014033,2]
[352950025,1739458246096,-500.0,0.00014033,2]
[352950026,1739458246106,-2122.71,0.00014033,2]
[352950027,1739458246116,-500.0,0.00014033,2]
[352950028,1739458246126,-3465.3,0.00014033,2]
[352950029,1739458246136,-500.0,0.00014033,2]
[352950030,1739458246146,-1153.75,0.00014033,2]
[352950031,1739458246155,-3740.45,0.00014033,2]
[352950032,1739458246166,-500.0,0.00014033,2]
[352950033,1739458246176,-1137.59,0.00014033,2]
[352950034,1739458246186,-2002.29,0.00014033,2]
[352950035,1739458246196,-500.0,0.00014033,2]
[352950036,1739458246217,-355.96327089,0.00014033,2]
[352950037,1739458246229,-3806.5,0.00014033,2]
[352950038,1739458246240,-5466.6,0.00014033,2]
[352950039,1739458246251,-2295.63,0.00014033,2]
[352950040,1739458246260,-1661.74,0.00014033,2]
[352950041,1739458246270,-500.0,0.00014033,2]
[352950042,1739458246279,-1965.14,0.00014033,2]
[352950043,1739458246290,-171.81860792,0.00014033,2]
[352950044,1739458246300,-299.78470694,0.00014033,2]
[352950045,1739458246310,-4305.33,0.00014033,2]
[352950046,1739458246320,-730.91,0.00014033,2]
[352950047,1739458246331,-502.66046316,0.00014033,2]
[352950048,1739458246342,-7704.03965658,0.00014033,2]
[352950049,1739458246352,-362.34035958,0.00014033,2]
[352950050,1739458246362,-150.0,0.0001405,2]
[352950051,1739458246372,-7704.03965658,0.00014056,2]
[352950052,1739458246382,-362.34035958,0.00014056,2]
[352950053,1739458246391,-472.13398,0.0001406,2]
[352950054,1739458246402,-472.13399,0.0001407,2]
[352950055,1739458246412,-7704.03965658,0.00014078,2]
[352950056,1739458246423,-362.34035958,0.00014078,2]
[352950057,1739458246435,-1466.66,0.00014081,2]
[352950058,1739458246447,-1219.76,0.00014081,2]
[352950059,1739458246457,-4554.65,0.00014081,2]
[352950060,1739458246468,-1865.32,0.00014081,2]
[352950061,1739458246478,-519.86858643,0.00014081,2]
[352950062,1739458246488,-3756.2,0.00014081,2]
[352950063,1739458246498,-2591.291679,0.00014081,2]
[352950064,1739458246508,-2804.94,0.00014081,2]
[352950065,1739458246518,-2365.34,0.00014081,2]
[352950066,1739458246529,-2022.69,0.00014081,2]
[352950067,1739458246539,-3650.99,0.00014081,2]
[352950068,1739458246550,-1561.75,0.00014081,2]
[352950069,1739458246560,-808.27,0.00014081,2]
[352950070,1739458246570,-1201.098903,0.00014081,2]
[352950071,1739458246582,-3214.41,0.00014081,2]
[352950072,1739458246592,-1453.09,0.00014081,2]
[352950073,1739458246602,-1268.89,0.00014081,2]
[352950074,1739458246611,-2704.44,0.00014081,2]
[352950075,1739458246621,-1078.53,0.00014081,2]
[352950076,1739458246632,-4254.21,0.00014081,2]
[352950077,1739458246642,-2505.56,0.00014081,2]
[352950078,1739458246652,-500.0,0.00014081,2]
[352950079,1739458246662,-2787.12,0.00014081,2]
[352950080,1739458246672,-1997.03,0.00014081,2]
[352950081,1739458246682,-3732.74,0.00014081,2]
[352950082,1739458246691,-2182.85,0.00014081,2]
[352950083,1739458246701,-3581.2,0.00014081,2]
[352950084,1739458246712,-3044.05,0.00014081,2]
[352950085,1739458246722,-3584.02,0.00014081,2]
[352950086,1739458246733,-3468.6,0.00014081,2]
[352950087,1739458246743,-500.0,0.00014081,2]
[352950088,1739458246752,-3571.61,0.00014081,2]
[352950089,1739458246762,-3419.78,0.00014081,2]
[352950090,1739458246773,-152.634274,0.00014081,2]
[352950091,1739458246783,-2528.35,0.00014081,2]
[352950092,1739458246793,-500.0,0.00014081,2]
[352950093,1739458246803,-1926.9,0.00014081,2]
[352950094,1739458246813,-2858.48,0.00014081,2]
[352950095,1739458246823,-3218.37,0.00014081,2]
[352950096,1739458246837,-3327.68,0.00014081,2]
[352950097,1739458246847,-3472.11,0.00014081,2]
[352950098,1739458246856,-4555.94,0.00014081,2]
[352950099,1739458246866,-3715.07,0.00014081,2]
[352950100,1739458246876,-10441.72,0.00014081,2]
[352950101,1739458246886,-4969.47,0.00014081,2]
[352950102,1739458246897,-4071.49,0.00014081,2]
[352950103,1739458246910,-3068.04,0.00014081,2]
[352950104,1739458246920,-500.0,0.00014081,2]
[352950105,1739458246930,-7777.74,0.00014081,2]
[352950106,1739458246942,-2738.67,0.00014081,2]
[352950107,1739458246952,-500.0,0.00014081,2]
[352950108,1739458246963,-2861.21,0.00014081,2]
[352950109,1739458246975,-500.0,0.00014081,2]
[352950110,1739458246985,-2144.63,0.00014081,2]
[352950111,1739458246995,-500.0,0.00014081,2]
[352950112,1739458247005,-231.52836721,0.00014081,2]
[352950113,1739458247015,-3838.03,0.00014081,2]
[352950114,1739458247025,-5453.93,0.00014081,2]
[352950115,1739458247035,-500.0,0.00014081,2]
[352950116,1739458247046,-1448.08,0.00014081,2]
[352950117,1739458247055,-2326.24,0.00014081,2]
[352950118,1739458247070,-794.42,0.00014081,2]
[352950119,1739458247082,-4497.87,0.00014081,2]
[352950120,1739458247092,-500.0,0.00014081,2]
[352950121,1739458247102,-500.0,0.00014081,2]
[352950122,1739458247113,-486.58220378,0.00014081,2]
[352950123,1739458247124,-1445.67847167,0.000141,2]
[352950124,1739458247134,-5045.5,0.000141,2]
[352950125,1739458247143,-897.86,0.000141,2]
[352950126,1739458247154,-3157.53,0.000141,2]
[352950127,1739458247164,-3209.05,0.000141,2]
[352950128,1739458247175,-767.12,0.000141,2]
[352950129,1739458247185,-5217.07,0.000141,2]
[352950130,1739458247195,-727.46,0.000141,2]
[352950131,1739458247204,-3867.49,0.000141,2]
[352950132,1739458247214,-994.7,0.000141,2]
[352950133,1739458247224,-7704.03965658,0.000141,2]
[352950134,1739458247234,-2920.06,0.000141,2]
[352950135,1739458247244,-1445.9,0.000141,2]
[352950136,1739458247254,-3893.08,0.000141,2]
[352950137,1739458247264,-500.0,0.000141,2]
[352950138,1739458247274,-2810.02,0.000141,2]
[352950139,1739458247284,-6501.95,0.000141,2]
[352950140,1739458247293,-1423.03,0.000141,2]
[352950141,1739458247303,-1706.19,0.000141,2]
[352950142,1739458247313,-2914.01,0.000141,2]
[352950143,1739458247323,-500.0,0.000141,2]
[352950144,1739458247334,-854.47,0.000141,2]
[352950145,1739458247344,-3038.93,0.000141,2]
[352950146,1739458247354,-3198.28,0.000141,2]
[352950147,1739458247364,-500.0,0.000141,2]
[352950148,1739458247375,-500.0,0.000141,2]
[352950149,1739458247385,-3359.99,0.000141,2]
[352950150,1739458247395,-213.7030357,0.000141,2]
[352950151,1739458247405,-3698.02,0.000141,2]
[352950152,1739458247415,-362.34035958,0.000141,2]
[352950153,1739458247425,-4738.33,0.000141,2]
[352950154,1739458247435,-11241.63,0.000141,2]
[352950155,1739458247445,-233.71141715,0.000141,2]
[352950156,1739458247455,-500.0,0.00014101,2]
[352950157,1739458247465,-500.0,0.00014101,2]
[352950158,1739458247475,-500.0,0.00014101,2]
[352950159,1739458247485,-500.0,0.00014101,2]
[352950160,1739458247495,-500.0,0.00014101,2]